{"text_format":"1","workbook":"xlsx","n_sheets":3,"sheets":["Премьер-Лига","Суммарная (ПЛ)","Переименования"],"not_rendered":{"charts":0,"images":0,"macros":0,"external_links":0,"defined_names":5,"comments":0,"pivot_tables":0},"unopened":[],"bounds":{"document_bytes":16777216,"sheet_cells":100000,"rows_first":2000,"rows_last":500,"rows_between":2000,"halvings":0,"cell_chars":16384,"cell_head_chars":4096},"cells_cut":0,"cells_raw":0,"read":"whole","date_system":"1900"}

{"sheet":"Премьер-Лига","index":0,"n_rows":317,"n_cols":10,"rows_kept":317,"cut":false,"hidden":false,"merged":[]}
["Сезон","Дата","Тур","Д","Г(Д)","Г(Г)","Г","Раунд","Комментарий","Разница"]
[1992,"1992-03-29",1,"Факел (Воронеж)",0,1,"Уралмаш (Екатеринбург)","Предварительный А",null,{"$f":"E2-F2","v":-1}]
[1992,"1992-04-18",1,"Текстильщик (Камышин)",1,0,"Динамо-Газовик (Тюмень)","Предварительный А",null,{"$f":"E3-F3","v":1}]
[1992,"1992-04-18",1,"Динамо (Ставрополь)",0,3,"Динамо (Москва)","Предварительный А",null,-3]
[1992,"1992-04-18",1,"Спартак (Владикавказ)",2,0,"ЦСКА (Москва)","Предварительный А",null,2]
[1992,"1992-04-01",2,"Факел (Воронеж)",1,0,"Динамо-Газовик (Тюмень)","Предварительный А",null,1]
[1992,"1992-04-01",2,"Текстильщик (Камышин)",3,0,"Уралмаш (Екатеринбург)","Предварительный А",null,3]
[1992,"1992-04-01",2,"Динамо (Ставрополь)",1,2,"ЦСКА (Москва)","Предварительный А",null,-1]
[1992,"1992-04-01",2,"Спартак (Владикавказ)",0,0,"Динамо (Москва)","Предварительный А",null,0]
[1992,"1992-04-03",2,"Локомотив (Москва)",2,1,"Океан (Находка)","Предварительный А",null,1]
[1992,"1992-04-08",3,"Динамо (Москва)",5,0,"Факел (Воронеж)","Предварительный А",null,5]
[1992,"1992-04-09",3,"ЦСКА (Москва)",1,0,"Текстильщик (Камышин)","Предварительный А",null,1]
[1992,"1992-04-10",3,"Локомотив (Москва)",3,0,"Динамо (Ставрополь)","Предварительный А",null,3]
[1992,"1992-04-10",3,"Океан (Находка)",2,1,"Спартак (Владикавказ)","Предварительный А",null,1]
[1992,"1992-04-12",4,"Динамо-Газовик (Тюмень)",2,3,"Уралмаш (Екатеринбург)","Предварительный А",null,-1]
[1992,"1992-04-12",4,"ЦСКА (Москва)",2,0,"Факел (Воронеж)","Предварительный А",null,2]
[1992,"1992-04-12",4,"Динамо (Москва)",4,0,"Текстильщик (Камышин)","Предварительный А",null,4]
[1992,"1992-04-13",4,"Локомотив (Москва)",0,3,"Спартак (Владикавказ)","Предварительный А",null,-3]
[1992,"1992-04-13",4,"Океан (Находка)",2,0,"Динамо (Ставрополь)","Предварительный А",null,2]
[1992,"1992-04-22",5,"Динамо-Газовик (Тюмень)",0,1,"Динамо (Москва)","Предварительный А",null,-1]
[1992,"1992-04-22",5,"Уралмаш (Екатеринбург)",1,1,"ЦСКА (Москва)","Предварительный А",null,0]
[1992,"1992-04-22",5,"Факел (Воронеж)",0,1,"Океан (Находка)","Предварительный А",null,-1]
[1992,"1992-04-22",5,"Текстильщик (Камышин)",3,1,"Локомотив (Москва)","Предварительный А",null,2]
[1992,"1992-04-25",6,"Динамо-Газовик (Тюмень)",0,1,"ЦСКА (Москва)","Предварительный А",null,-1]
[1992,"1992-04-25",6,"Уралмаш (Екатеринбург)",2,1,"Динамо (Москва)","Предварительный А",null,1]
[1992,"1992-04-25",6,"Динамо (Ставрополь)",0,2,"Спартак (Владикавказ)","Предварительный А",null,-2]
[1992,"1992-04-25",6,"Факел (Воронеж)",1,1,"Локомотив (Москва)","Предварительный А",null,0]
[1992,"1992-04-25",6,"Текстильщик (Камышин)",1,0,"Океан (Находка)","Предварительный А",null,1]
[1992,"1992-05-02",7,"Океан (Находка)",1,0,"Динамо-Газовик (Тюмень)","Предварительный А",null,1]
[1992,"1992-05-02",7,"Динамо (Ставрополь)",2,1,"Факел (Воронеж)","Предварительный А",null,1]
[1992,"1992-05-02",7,"Спартак (Владикавказ)",2,2,"Текстильщик (Камышин)","Предварительный А",null,0]
[1992,"1992-05-02",7,"Локомотив (Москва)",1,0,"Уралмаш (Екатеринбург)","Предварительный А",null,1]
[1992,"1992-05-03",7,"Динамо (Москва)",2,1,"ЦСКА (Москва)","Предварительный А",null,1]
[1992,"1992-05-05",8,"Динамо (Ставрополь)",0,0,"Текстильщик (Камышин)","Предварительный А",null,0]
[1992,"1992-05-05",8,"Спартак (Владикавказ)",2,1,"Факел (Воронеж)","Предварительный А",null,1]
[1992,"1992-05-05",8,"Локомотив (Москва)",3,1,"Динамо-Газовик (Тюмень)","Предварительный А",null,2]
[1992,"1992-05-05",8,"Океан (Находка)",1,1,"Уралмаш (Екатеринбург)","Предварительный А",null,0]
[1992,"1992-05-14",9,"Уралмаш (Екатеринбург)",1,1,"Спартак (Владикавказ)","Предварительный А",null,0]
[1992,"1992-05-14",9,"Факел (Воронеж)",1,1,"Текстильщик (Камышин)","Предварительный А",null,0]
[1992,"1992-05-14",9,"Динамо (Москва)",0,0,"Локомотив (Москва)","Предварительный А",null,0]
[1992,"1992-05-14",9,"ЦСКА (Москва)",2,0,"Океан (Находка)","Предварительный А",null,2]
[1992,"1992-05-14",9,"Динамо-Газовик (Тюмень)",1,0,"Динамо (Ставрополь)","Предварительный А",null,1]
[1992,"1992-05-17",10,"Динамо-Газовик (Тюмень)",1,0,"Спартак (Владикавказ)","Предварительный А",null,1]
[1992,"1992-05-17",10,"Уралмаш (Екатеринбург)",4,1,"Динамо (Ставрополь)","Предварительный А",null,3]
[1992,"1992-05-18",10,"Океан (Находка)",1,1,"Динамо (Москва)","Предварительный А",null,0]
[1992,"1992-05-18",10,"ЦСКА (Москва)",1,1,"Локомотив (Москва)","Предварительный А",null,0]
[1992,"1992-05-10",11,"Динамо (Ставрополь)",2,0,"Океан (Находка)","Предварительный А",null,2]
[1992,"1992-06-29",11,"Текстильщик (Камышин)",1,1,"ЦСКА (Москва)","Предварительный А",null,0]
[1992,"1992-06-29",11,"Спартак (Владикавказ)",0,0,"Локомотив (Москва)","Предварительный А",null,0]
[1992,"1992-07-26",11,"Факел (Воронеж)",1,0,"Динамо (Москва)","Предварительный А",null,1]
[1992,"1992-07-02",12,"Факел (Воронеж)",1,1,"ЦСКА (Москва)","Предварительный А",null,0]
[1992,"1992-07-02",12,"Динамо (Ставрополь)",0,1,"Локомотив (Москва)","Предварительный А",null,-1]
[1992,"1992-07-02",12,"Уралмаш (Екатеринбург)",5,2,"Динамо-Газовик (Тюмень)","Предварительный А",null,3]
[1992,"1992-07-23",12,"Текстильщик (Камышин)",1,1,"Динамо (Москва)","Предварительный А",null,0]
[1992,"1992-08-05",12,"Спартак (Владикавказ)",3,1,"Океан (Находка)","Предварительный А",null,2]
[1992,"1992-07-08",13,"ЦСКА (Москва)",2,1,"Уралмаш (Екатеринбург)","Предварительный А",null,1]
[1992,"1992-07-09",13,"Спартак (Владикавказ)",2,1,"Динамо (Ставрополь)","Предварительный А",null,1]
[1992,"1992-07-09",13,"Динамо (Москва)",1,0,"Динамо-Газовик (Тюмень)","Предварительный А",null,1]
[1992,"1992-07-10",13,"Локомотив (Москва)",0,0,"Факел (Воронеж)","Предварительный А",null,0]
[1992,"1992-07-10",13,"Океан (Находка)",2,0,"Текстильщик (Камышин)","Предварительный А",null,2]
[1992,"1992-07-07",14,"Локомотив (Москва)",1,0,"Текстильщик (Камышин)","Предварительный А",null,1]
[1992,"1992-07-12",14,"Динамо (Москва)",6,2,"Уралмаш (Екатеринбург)","Предварительный А",null,4]
[1992,"1992-07-12",14,"ЦСКА (Москва)",3,0,"Динамо-Газовик (Тюмень)","Предварительный А",null,3]
[1992,"1992-07-13",14,"Океан (Находка)",0,0,"Факел (Воронеж)","Предварительный А",null,0]
[1992,"1992-07-17",15,"ЦСКА (Москва)",4,1,"Динамо (Москва)","Предварительный А",null,3]
[1992,"1992-07-19",15,"Факел (Воронеж)",2,1,"Динамо (Ставрополь)","Предварительный А",null,1]
[1992,"1992-07-19",15,"Текстильщик (Камышин)",3,2,"Спартак (Владикавказ)","Предварительный А",null,{"$f":"E67-F67","v":1}]
[1992,"1992-07-19",15,"Динамо-Газовик (Тюмень)",0,3,"Локомотив (Москва)","Предварительный А",null,-3]
[1992,"1992-07-19",15,"Уралмаш (Екатеринбург)",1,3,"Океан (Находка)","Предварительный А",null,-2]
[1992,"1992-07-16",16,"Текстильщик (Камышин)",1,0,"Динамо (Ставрополь)","Предварительный А",null,1]
[1992,"1992-07-22",16,"Факел (Воронеж)",0,0,"Спартак (Владикавказ)","Предварительный А",null,0]
[1992,"1992-07-22",16,"Динамо-Газовик (Тюмень)",3,3,"Океан (Находка)","Предварительный А",null,0]
[1992,"1992-07-22",16,"Уралмаш (Екатеринбург)",3,1,"Локомотив (Москва)","Предварительный А",null,2]
[1992,"1992-07-30",17,"Океан (Находка)",5,2,"ЦСКА (Москва)","Предварительный А",null,3]
[1992,"1992-07-30",17,"Динамо (Ставрополь)",3,0,"Динамо-Газовик (Тюмень)","Предварительный А",null,3]
[1992,"1992-07-30",17,"Спартак (Владикавказ)",2,0,"Уралмаш (Екатеринбург)","Предварительный А",null,2]
[1992,"1992-07-30",17,"Локомотив (Москва)",2,0,"Динамо (Москва)","Предварительный А",null,2]
[1992,"1992-08-02",18,"Текстильщик (Камышин)",1,0,"Факел (Воронеж)","Предварительный А",null,1]
[1992,"1992-08-02",18,"Динамо (Ставрополь)",2,1,"Уралмаш (Екатеринбург)","Предварительный А",null,1]
[1992,"1992-08-02",18,"Спартак (Владикавказ)",4,1,"Динамо-Газовик (Тюмень)","Предварительный А",null,3]
[1992,"1992-08-02",18,"Динамо (Москва)",3,0,"Океан (Находка)","Предварительный А",null,3]
[1992,"1992-08-03",18,"Локомотив (Москва)",0,0,"ЦСКА (Москва)","Предварительный А",null,0]
[1992,"1992-08-09",19,"Уралмаш (Екатеринбург)",1,0,"Факел (Воронеж)","Предварительный А",null,1]
[1992,"1992-08-09",19,"Динамо (Москва)",3,1,"Динамо (Ставрополь)","Предварительный А",null,2]
[1992,"1992-08-09",19,"ЦСКА (Москва)",2,4,"Спартак (Владикавказ)","Предварительный А",null,-2]
[1992,"1992-08-09",19,"Динамо-Газовик (Тюмень)",0,2,"Текстильщик (Камышин)","Предварительный А",null,-2]
[1992,"1992-08-12",20,"Океан (Находка)",1,3,"Локомотив (Москва)","Предварительный А",null,-2]
[1992,"1992-08-12",20,"Динамо (Москва)",3,1,"Спартак (Владикавказ)","Предварительный А",null,2]
[1992,"1992-08-12",20,"ЦСКА (Москва)",3,0,"Динамо (Ставрополь)","Предварительный А",null,3]
[1992,"1992-08-12",20,"Динамо-Газовик (Тюмень)",0,1,"Факел (Воронеж)","Предварительный А",null,-1]
[1992,"1992-08-12",20,"Уралмаш (Екатеринбург)",1,0,"Текстильщик (Камышин)","Предварительный А",null,1]
[1992,"1992-03-29",1,"Спартак (Москва)",5,0,"Крылья Советов (Самара)","Предварительный Б",null,5]
[1992,"1992-03-29",1,"Ростсельмаш (Ростов-на-Дону)",2,0,"Шинник (Ярославль)","Предварительный Б",null,2]
[1992,"1992-03-29",1,"Кубань (Краснодар)",0,0,"Локомотив-Эрэтиспорт (Нижний Новгород)","Предварительный Б",null,0]
[1992,"1992-04-18",1,"Торпедо (Москва)",1,0,"Ротор (Волгоград)","Предварительный Б",null,1]
[1992,"1992-04-01",2,"Зенит (Санкт-Петербург)",2,4,"Асмарал (Москва)","Предварительный Б",null,-2]
[1992,"1992-04-01",2,"Торпедо (Москва)",2,0,"Крылья Советов (Самара)","Предварительный Б",null,2]
[1992,"1992-04-01",2,"Ростсельмаш (Ростов-на-Дону)",0,0,"Локомотив-Эрэтиспорт (Нижний Новгород)","Предварительный Б",null,0]
[1992,"1992-04-01",2,"Кубань (Краснодар)",2,1,"Шинник (Ярославль)","Предварительный Б",null,1]
[1992,"1992-04-02",2,"Спартак (Москва)",1,0,"Ротор (Волгоград)","Предварительный Б",null,1]
[1992,"1992-04-08",3,"Локомотив-Эрэтиспорт (Нижний Новгород)",0,0,"Спартак (Москва)","Предварительный Б",null,0]
[1992,"1992-04-08",3,"Шинник (Ярославль)",0,2,"Торпедо (Москва)","Предварительный Б",null,-2]
[1992,"1992-04-08",3,"Кубань (Краснодар)",0,2,"Ростсельмаш (Ростов-на-Дону)","Предварительный Б",null,-2]
[1992,"1992-04-09",3,"Ротор (Волгоград)",6,1,"Зенит (Санкт-Петербург)","Предварительный Б",null,5]
[1992,"1992-04-09",3,"Крылья Советов (Самара)",1,2,"Асмарал (Москва)","Предварительный Б",null,-1]
[1992,"1992-04-12",4,"Локомотив-Эрэтиспорт (Нижний Новгород)",1,0,"Торпедо (Москва)","Предварительный Б",null,1]
[1992,"1992-04-12",4,"Шинник (Ярославль)",0,1,"Спартак (Москва)","Предварительный Б",null,-1]
[1992,"1992-04-12",4,"Ротор (Волгоград)",0,0,"Асмарал (Москва)","Предварительный Б",null,0]
[1992,"1992-04-13",4,"Крылья Советов (Самара)",1,0,"Зенит (Санкт-Петербург)","Предварительный Б",null,1]
[1992,"1992-04-21",5,"Спартак (Москва)",2,1,"Кубань (Краснодар)","Предварительный Б",null,1]
[1992,"1992-04-22",5,"Торпедо (Москва)",1,1,"Ростсельмаш (Ростов-на-Дону)","Предварительный Б",null,0]
[1992,"1992-04-23",5,"Асмарал (Москва)",0,0,"Локомотив-Эрэтиспорт (Нижний Новгород)","Предварительный Б",null,0]
[1992,"1992-04-23",5,"Зенит (Санкт-Петербург)",2,0,"Шинник (Ярославль)","Предварительный Б",null,2]
[1992,"1992-04-25",6,"Крылья Советов (Самара)",0,0,"Ротор (Волгоград)","Предварительный Б",null,0]
[1992,"1992-04-25",6,"Торпедо (Москва)",0,0,"Кубань (Краснодар)","Предварительный Б",null,0]
[1992,"1992-04-25",6,"Спартак (Москва)",2,0,"Ростсельмаш (Ростов-на-Дону)","Предварительный Б",null,2]
[1992,"1992-04-26",6,"Асмарал (Москва)",1,2,"Шинник (Ярославль)","Предварительный Б",null,-1]
[1992,"1992-04-26",6,"Зенит (Санкт-Петербург)",1,1,"Локомотив-Эрэтиспорт (Нижний Новгород)","Предварительный Б",null,0]
[1992,"1992-05-02",7,"Кубань (Краснодар)",1,2,"Асмарал (Москва)","Предварительный Б",null,-1]
[1992,"1992-05-02",7,"Локомотив-Эрэтиспорт (Нижний Новгород)",1,0,"Ротор (Волгоград)","Предварительный Б",null,1]
[1992,"1992-05-02",7,"Спартак (Москва)",1,1,"Торпедо (Москва)","Предварительный Б",null,0]
[1992,"1992-05-02",7,"Шинник (Ярославль)",2,2,"Крылья Советов (Самара)","Предварительный Б",null,0]
[1992,"1992-05-03",7,"Ростсельмаш (Ростов-на-Дону)",1,0,"Зенит (Санкт-Петербург)","Предварительный Б",null,1]
[1992,"1992-05-05",8,"Локомотив-Эрэтиспорт (Нижний Новгород)",1,0,"Крылья Советов (Самара)","Предварительный Б",null,1]
[1992,"1992-05-05",8,"Шинник (Ярославль)",1,1,"Ротор (Волгоград)","Предварительный Б",null,0]
[1992,"1992-05-05",8,"Ростсельмаш (Ростов-на-Дону)",0,1,"Асмарал (Москва)","Предварительный Б",null,-1]
[1992,"1992-05-05",8,"Кубань (Краснодар)",2,2,"Зенит (Санкт-Петербург)","Предварительный Б",null,0]
[1992,"1992-05-13",9,"Асмарал (Москва)",2,1,"Торпедо (Москва)","Предварительный Б",null,1]
[1992,"1992-05-14",9,"Шинник (Ярославль)",0,2,"Локомотив-Эрэтиспорт (Нижний Новгород)","Предварительный Б",null,-2]
[1992,"1992-05-14",9,"Ротор (Волгоград)",1,3,"Ростсельмаш (Ростов-на-Дону)","Предварительный Б",null,-2]
[1992,"1992-05-14",9,"Крылья Советов (Самара)",1,0,"Кубань (Краснодар)","Предварительный Б",null,{"$f":"E131-F131","v":1}]
[1992,"1992-05-14",9,"Зенит (Санкт-Петербург)",2,0,"Спартак (Москва)","Предварительный Б",null,2]
[1992,"1992-05-17",10,"Ротор (Волгоград)",1,3,"Кубань (Краснодар)","Предварительный Б",null,-2]
[1992,"1992-05-17",10,"Крылья Советов (Самара)",1,0,"Ростсельмаш (Ростов-на-Дону)","Предварительный Б",null,1]
[1992,"1992-05-17",10,"Зенит (Санкт-Петербург)",2,3,"Торпедо (Москва)","Предварительный Б",null,-1]
[1992,"1992-05-17",10,"Асмарал (Москва)",1,1,"Спартак (Москва)","Предварительный Б",null,0]
[1992,"1992-06-28",11,"Зенит (Санкт-Петербург)",1,1,"Ротор (Волгоград)","Предварительный Б",null,0]
[1992,"1992-06-28",11,"Асмарал (Москва)",1,1,"Крылья Советов (Самара)","Предварительный Б",null,0]
[1992,"1992-06-29",11,"Торпедо (Москва)",0,1,"Локомотив-Эрэтиспорт (Нижний Новгород)","Предварительный Б",null,-1]
[1992,"1992-07-23",11,"Спартак (Москва)",0,0,"Шинник (Ярославль)","Предварительный Б",null,0]
[1992,"1992-07-01",12,"Асмарал (Москва)",2,1,"Ротор (Волгоград)","Предварительный Б",null,1]
[1992,"1992-07-01",12,"Зенит (Санкт-Петербург)",0,0,"Крылья Советов (Самара)","Предварительный Б",null,0]
[1992,"1992-07-02",12,"Спартак (Москва)",1,0,"Локомотив-Эрэтиспорт (Нижний Новгород)","Предварительный Б",null,1]
[1992,"1992-07-02",12,"Ростсельмаш (Ростов-на-Дону)",1,1,"Кубань (Краснодар)","Предварительный Б",null,0]
[1992,"1992-07-02",12,"Торпедо (Москва)",1,0,"Шинник (Ярославль)","Предварительный Б",null,1]
[1992,"1992-07-09",13,"Кубань (Краснодар)",1,5,"Спартак (Москва)","Предварительный Б",null,-4]
[1992,"1992-07-09",13,"Ротор (Волгоград)",3,0,"Крылья Советов (Самара)","Предварительный Б",null,3]
[1992,"1992-07-09",13,"Локомотив-Эрэтиспорт (Нижний Новгород)",2,1,"Асмарал (Москва)","Предварительный Б",null,1]
[1992,"1992-07-09",13,"Шинник (Ярославль)",1,1,"Зенит (Санкт-Петербург)","Предварительный Б",null,0]
[1992,"1992-07-09",13,"Ростсельмаш (Ростов-на-Дону)",2,1,"Торпедо (Москва)","Предварительный Б",null,1]
[1992,"1992-07-12",14,"Локомотив-Эрэтиспорт (Нижний Новгород)",0,0,"Зенит (Санкт-Петербург)","Предварительный Б",null,0]
[1992,"1992-07-12",14,"Шинник (Ярославль)",0,3,"Асмарал (Москва)","Предварительный Б",null,-3]
[1992,"1992-07-12",14,"Ростсельмаш (Ростов-на-Дону)",0,0,"Спартак (Москва)","Предварительный Б",null,0]
[1992,"1992-07-12",14,"Кубань (Краснодар)",1,3,"Торпедо (Москва)","Предварительный Б",null,-2]
[1992,"1992-07-19",15,"Зенит (Санкт-Петербург)",1,2,"Ростсельмаш (Ростов-на-Дону)","Предварительный Б",null,-1]
[1992,"1992-07-19",15,"Торпедо (Москва)",0,3,"Спартак (Москва)","Предварительный Б",null,-3]
[1992,"1992-07-19",15,"Крылья Советов (Самара)",1,0,"Шинник (Ярославль)","Предварительный Б",null,1]
[1992,"1992-07-19",15,"Асмарал (Москва)",3,1,"Кубань (Краснодар)","Предварительный Б",null,2]
[1992,"1992-07-26",15,"Ротор (Волгоград)",3,0,"Локомотив-Эрэтиспорт (Нижний Новгород)","Предварительный Б",null,3]
[1992,"1992-07-05",16,"Ротор (Волгоград)",1,0,"Шинник (Ярославль)","Предварительный Б",null,1]
[1992,"1992-07-22",16,"Зенит (Санкт-Петербург)",1,0,"Кубань (Краснодар)","Предварительный Б",null,1]
[1992,"1992-07-22",16,"Крылья Советов (Самара)",1,1,"Локомотив-Эрэтиспорт (Нижний Новгород)","Предварительный Б",null,0]
[1992,"1992-07-22",16,"Асмарал (Москва)",1,0,"Ростсельмаш (Ростов-на-Дону)","Предварительный Б",null,1]
[1992,"1992-07-28",17,"Торпедо (Москва)",1,2,"Асмарал (Москва)","Предварительный Б",null,-1]
[1992,"1992-07-29",17,"Спартак (Москва)",4,0,"Зенит (Санкт-Петербург)","Предварительный Б",null,4]
[1992,"1992-07-30",17,"Ростсельмаш (Ростов-на-Дону)",1,3,"Ротор (Волгоград)","Предварительный Б",null,-2]
[1992,"1992-07-30",17,"Кубань (Краснодар)",0,0,"Крылья Советов (Самара)","Предварительный Б",null,0]
[1992,"1992-08-01",18,"Торпедо (Москва)",1,2,"Зенит (Санкт-Петербург)","Предварительный Б",null,-1]
[1992,"1992-08-02",18,"Ростсельмаш (Ростов-на-Дону)",1,1,"Крылья Советов (Самара)","Предварительный Б",null,0]
[1992,"1992-08-02",18,"Кубань (Краснодар)",0,1,"Ротор (Волгоград)","Предварительный Б",null,-1]
[1992,"1992-08-02",18,"Локомотив-Эрэтиспорт (Нижний Новгород)",2,0,"Шинник (Ярославль)","Предварительный Б",null,2]
[1992,"1992-08-02",18,"Спартак (Москва)",5,1,"Асмарал (Москва)","Предварительный Б",null,4]
[1992,"1992-08-09",19,"Крылья Советов (Самара)",1,1,"Спартак (Москва)","Предварительный Б",null,0]
[1992,"1992-08-09",19,"Локомотив-Эрэтиспорт (Нижний Новгород)",3,3,"Кубань (Краснодар)","Предварительный Б",null,0]
[1992,"1992-08-09",19,"Шинник (Ярославль)",2,3,"Ростсельмаш (Ростов-на-Дону)","Предварительный Б",null,-1]
[1992,"1992-08-09",19,"Ротор (Волгоград)",0,1,"Торпедо (Москва)","Предварительный Б",null,-1]
[1992,"1992-08-12",20,"Асмарал (Москва)",8,3,"Зенит (Санкт-Петербург)","Предварительный Б",null,5]
[1992,"1992-08-12",20,"Локомотив-Эрэтиспорт (Нижний Новгород)",1,1,"Ростсельмаш (Ростов-на-Дону)","Предварительный Б",null,0]
[1992,"1992-08-12",20,"Шинник (Ярославль)",2,3,"Кубань (Краснодар)","Предварительный Б",null,-1]
[1992,"1992-08-12",20,"Ротор (Волгоград)",1,3,"Спартак (Москва)","Предварительный Б",null,-2]
[1992,"1992-08-12",20,"Крылья Советов (Самара)",2,1,"Торпедо (Москва)","Предварительный Б",null,1]
[1992,"1992-08-30",1,"Зенит (Санкт-Петербург)",3,0,"Океан (Находка)","9-20 Места",null,3]
[1992,"1992-08-30",1,"Шинник (Ярославль)",1,1,"Факел (Воронеж)","9-20 Места",null,0]
[1992,"1992-08-30",1,"Кубань (Краснодар)",2,1,"Динамо-Газовик (Тюмень)","9-20 Места",null,1]
[1992,"1992-08-30",1,"Ротор (Волгоград)",2,1,"Динамо (Ставрополь)","9-20 Места",null,1]
[1992,"1992-08-30",1,"Крылья Советов (Самара)",2,0,"Текстильщик (Камышин)","9-20 Места",null,2]
[1992,"1992-08-30",1,"Торпедо (Москва)",1,1,"Уралмаш (Екатеринбург)","9-20 Места",null,0]
[1992,"1992-09-03",2,"Уралмаш (Екатеринбург)",2,0,"Крылья Советов (Самара)","9-20 Места",null,2]
[1992,"1992-09-03",2,"Текстильщик (Камышин)",3,0,"Торпедо (Москва)","9-20 Места",null,3]
[1992,"1992-09-03",2,"Динамо-Газовик (Тюмень)",1,2,"Шинник (Ярославль)","9-20 Места",null,-1]
[1992,"1992-09-03",2,"Факел (Воронеж)",2,0,"Кубань (Краснодар)","9-20 Места",null,2]
[1992,"1992-09-03",2,"Динамо (Ставрополь)",3,0,"Зенит (Санкт-Петербург)","9-20 Места",null,3]
[1992,"1992-09-03",2,"Океан (Находка)",0,2,"Ротор (Волгоград)","9-20 Места",null,-2]
[1992,"1992-09-07",3,"Динамо (Ставрополь)",0,3,"Крылья Советов (Самара)","9-20 Места","тех",-3]
[1992,"1992-09-07",3,"Океан (Находка)",0,0,"Торпедо (Москва)","9-20 Места",null,{"$f":"E195-F195","v":0}]
[1992,"1992-09-09",3,"Зенит (Санкт-Петербург)",2,0,"Факел (Воронеж)","9-20 Места",null,2]
[1992,"1992-09-09",3,"Ротор (Волгоград)",3,2,"Динамо-Газовик (Тюмень)","9-20 Места",null,1]
[1992,"1992-09-09",3,"Шинник (Ярославль)",2,0,"Текстильщик (Камышин)","9-20 Места",null,2]
[1992,"1992-09-09",3,"Кубань (Краснодар)",0,0,"Уралмаш (Екатеринбург)","9-20 Места",null,0]
[1992,"1992-09-11",4,"Торпедо (Москва)",0,1,"Динамо (Ставрополь)","9-20 Места",null,-1]
[1992,"1992-09-13",4,"Динамо-Газовик (Тюмень)",1,3,"Зенит (Санкт-Петербург)","9-20 Места",null,-2]
[1992,"1992-09-13",4,"Факел (Воронеж)",1,0,"Ротор (Волгоград)","9-20 Места",null,1]
[1992,"1992-09-13",4,"Уралмаш (Екатеринбург)",2,0,"Шинник (Ярославль)","9-20 Места",null,2]
[1992,"1992-09-13",4,"Текстильщик (Камышин)",1,0,"Кубань (Краснодар)","9-20 Места",null,1]
[1992,"1992-09-15",4,"Крылья Советов (Самара)",3,1,"Океан (Находка)","9-20 Места",null,2]
[1992,"1992-09-19",5,"Шинник (Ярославль)",1,2,"Океан (Находка)","9-20 Места",null,-1]
[1992,"1992-09-20",5,"Динамо-Газовик (Тюмень)",1,0,"Крылья Советов (Самара)","9-20 Места",null,1]
[1992,"1992-09-20",5,"Факел (Воронеж)",1,1,"Торпедо (Москва)","9-20 Места",null,0]
[1992,"1992-09-20",5,"Кубань (Краснодар)",2,2,"Динамо (Ставрополь)","9-20 Места",null,0]
[1992,"1992-09-20",5,"Зенит (Санкт-Петербург)",0,1,"Текстильщик (Камышин)","9-20 Места",null,-1]
[1992,"1992-09-20",5,"Ротор (Волгоград)",2,2,"Уралмаш (Екатеринбург)","9-20 Места",null,0]
[1992,"1992-09-25",6,"Торпедо (Москва)",3,0,"Динамо-Газовик (Тюмень)","9-20 Места","тех",3]
[1992,"1992-09-27",6,"Крылья Советов (Самара)",1,0,"Факел (Воронеж)","9-20 Места",null,1]
[1992,"1992-09-27",6,"Динамо (Ставрополь)",1,0,"Шинник (Ярославль)","9-20 Места",null,1]
[1992,"1992-09-27",6,"Океан (Находка)",2,0,"Кубань (Краснодар)","9-20 Места",null,2]
[1992,"1992-09-27",6,"Уралмаш (Екатеринбург)",1,1,"Зенит (Санкт-Петербург)","9-20 Места",null,0]
[1992,"1992-09-27",6,"Текстильщик (Камышин)",1,0,"Ротор (Волгоград)","9-20 Места",null,1]
[1992,"1992-10-03",7,"Шинник (Ярославль)",3,0,"Динамо-Газовик (Тюмень)","9-20 Места",null,3]
[1992,"1992-10-03",7,"Кубань (Краснодар)",0,2,"Факел (Воронеж)","9-20 Места",null,-2]
[1992,"1992-10-03",7,"Крылья Советов (Самара)",1,1,"Уралмаш (Екатеринбург)","9-20 Места",null,0]
[1992,"1992-10-03",7,"Торпедо (Москва)",1,0,"Текстильщик (Камышин)","9-20 Места",null,1]
[1992,"1992-10-03",7,"Динамо (Ставрополь)",4,2,"Ротор (Волгоград)","9-20 Места",null,2]
[1992,"1992-10-28",7,"Океан (Находка)",3,2,"Зенит (Санкт-Петербург)","9-20 Места",null,1]
[1992,"1992-10-11",8,"Динамо-Газовик (Тюмень)",1,0,"Кубань (Краснодар)","9-20 Места",null,1]
[1992,"1992-10-11",8,"Факел (Воронеж)",1,0,"Шинник (Ярославль)","9-20 Места",null,1]
[1992,"1992-10-11",8,"Уралмаш (Екатеринбург)",1,0,"Торпедо (Москва)","9-20 Места",null,1]
[1992,"1992-10-11",8,"Текстильщик (Камышин)",1,1,"Крылья Советов (Самара)","9-20 Места",null,0]
[1992,"1992-10-11",8,"Зенит (Санкт-Петербург)",2,0,"Динамо (Ставрополь)","9-20 Места",null,2]
[1992,"1992-10-13",8,"Ротор (Волгоград)",2,0,"Океан (Находка)","9-20 Места",null,2]
[1992,"1992-10-16",9,"Торпедо (Москва)",2,0,"Океан (Находка)","9-20 Места",null,2]
[1992,"1992-10-17",9,"Кубань (Краснодар)",0,2,"Текстильщик (Камышин)","9-20 Места",null,-2]
[1992,"1992-10-17",9,"Ротор (Волгоград)",2,0,"Факел (Воронеж)","9-20 Места",null,2]
[1992,"1992-10-18",9,"Шинник (Ярославль)",0,4,"Уралмаш (Екатеринбург)","9-20 Места",null,-4]
[1992,"1992-10-18",9,"Зенит (Санкт-Петербург)",4,0,"Динамо-Газовик (Тюмень)","9-20 Места",null,4]
[1992,"1992-10-18",9,"Крылья Советов (Самара)",0,0,"Динамо (Ставрополь)","9-20 Места",null,0]
[1992,"1992-10-25",10,"Океан (Находка)",1,0,"Крылья Советов (Самара)","9-20 Места",null,1]
[1992,"1992-10-25",10,"Текстильщик (Камышин)",3,1,"Шинник (Ярославль)","9-20 Места",null,2]
[1992,"1992-10-25",10,"Динамо-Газовик (Тюмень)",0,3,"Ротор (Волгоград)","9-20 Места",null,-3]
[1992,"1992-10-25",10,"Факел (Воронеж)",1,0,"Зенит (Санкт-Петербург)","9-20 Места",null,1]
[1992,"1992-10-25",10,"Динамо (Ставрополь)",1,0,"Торпедо (Москва)","9-20 Места",null,1]
[1992,"1992-11-10",10,"Уралмаш (Екатеринбург)",6,0,"Кубань (Краснодар)","9-20 Места",null,6]
[1992,"1992-10-30",11,"Торпедо (Москва)",2,1,"Факел (Воронеж)","9-20 Места",null,1]
[1992,"1992-11-01",11,"Зенит (Санкт-Петербург)",1,0,"Уралмаш (Екатеринбург)","9-20 Места",null,1]
[1992,"1992-11-01",11,"Ротор (Волгоград)",2,1,"Текстильщик (Камышин)","9-20 Места",null,1]
[1992,"1992-11-01",11,"Крылья Советов (Самара)",4,0,"Динамо-Газовик (Тюмень)","9-20 Места",null,4]
[1992,"1992-11-01",11,"Шинник (Ярославль)",0,0,"Динамо (Ставрополь)","9-20 Места",null,0]
[1992,"1992-11-03",11,"Кубань (Краснодар)",1,1,"Океан (Находка)","9-20 Места",null,0]
[1992,"1992-11-07",12,"Динамо-Газовик (Тюмень)",1,2,"Торпедо (Москва)","9-20 Места",null,-1]
[1992,"1992-11-07",12,"Факел (Воронеж)",1,0,"Крылья Советов (Самара)","9-20 Места",null,1]
[1992,"1992-11-07",12,"Динамо (Ставрополь)",3,0,"Кубань (Краснодар)","9-20 Места",null,3]
[1992,"1992-11-07",12,"Уралмаш (Екатеринбург)",2,1,"Ротор (Волгоград)","9-20 Места",null,1]
[1992,"1992-11-07",12,"Текстильщик (Камышин)",0,0,"Зенит (Санкт-Петербург)","9-20 Места",null,0]
[1992,"1992-11-08",12,"Океан (Находка)",3,2,"Шинник (Ярославль)","9-20 Места",null,1]
[1992,"1992-08-29",1,"Динамо (Москва)",1,1,"Ростсельмаш (Ростов-на-Дону)","1-8 Места",null,0]
[1992,"1992-08-29",1,"Спартак (Владикавказ)",4,0,"Локомотив-Эрэтиспорт (Нижний Новгород)","1-8 Места",null,4]
[1992,"1992-08-29",1,"Локомотив (Москва)",0,1,"Спартак (Москва)","1-8 Места",null,-1]
[1992,"1992-08-30",1,"ЦСКА (Москва)",4,1,"Асмарал (Москва)","1-8 Места",null,3]
[1992,"1992-09-05",2,"Ростсельмаш (Ростов-на-Дону)",1,0,"Спартак (Владикавказ)","1-8 Места",null,1]
[1992,"1992-09-05",2,"Локомотив-Эрэтиспорт (Нижний Новгород)",0,2,"Динамо (Москва)","1-8 Места",null,{"$f":"E259-F259","v":-2}]
[1992,"1992-09-05",2,"Спартак (Москва)",1,1,"ЦСКА (Москва)","1-8 Места",null,0]
[1992,"1992-09-06",2,"Асмарал (Москва)",0,3,"Локомотив (Москва)","1-8 Места",null,-3]
[1992,"1992-09-10",3,"ЦСКА (Москва)",4,0,"Ростсельмаш (Ростов-на-Дону)","1-8 Места",null,4]
[1992,"1992-09-11",3,"Динамо (Москва)",6,1,"Асмарал (Москва)","1-8 Места",null,5]
[1992,"1992-09-11",3,"Спартак (Владикавказ)",2,5,"Спартак (Москва)","1-8 Места",null,-3]
[1992,"1992-09-12",3,"Локомотив (Москва)",1,1,"Локомотив-Эрэтиспорт (Нижний Новгород)","1-8 Места",null,0]
[1992,"1992-09-26",4,"Асмарал (Москва)",3,3,"Спартак (Владикавказ)","1-8 Места",null,0]
[1992,"1992-09-26",4,"Ростсельмаш (Ростов-на-Дону)",0,1,"Локомотив (Москва)","1-8 Места",null,-1]
[1992,"1992-09-26",4,"Локомотив-Эрэтиспорт (Нижний Новгород)",1,1,"ЦСКА (Москва)","1-8 Места",null,0]
[1992,"1992-09-26",4,"Спартак (Москва)",4,3,"Динамо (Москва)","1-8 Места",null,1]
[1992,"1992-10-03",5,"Локомотив (Москва)",1,4,"Асмарал (Москва)","1-8 Места",null,-3]
[1992,"1992-10-04",5,"ЦСКА (Москва)",1,2,"Спартак (Москва)","1-8 Места",null,-1]
[1992,"1992-10-04",5,"Динамо (Москва)",1,1,"Локомотив-Эрэтиспорт (Нижний Новгород)","1-8 Места",null,0]
[1992,"1992-10-04",5,"Спартак (Владикавказ)",1,0,"Ростсельмаш (Ростов-на-Дону)","1-8 Места",null,1]
[1992,"1992-10-17",6,"Ростсельмаш (Ростов-на-Дону)",0,2,"Динамо (Москва)","1-8 Места",null,-2]
[1992,"1992-10-17",6,"Локомотив-Эрэтиспорт (Нижний Новгород)",1,3,"Спартак (Владикавказ)","1-8 Места",null,-2]
[1992,"1992-10-17",6,"Асмарал (Москва)",2,5,"ЦСКА (Москва)","1-8 Места",null,-3]
[1992,"1992-10-17",6,"Спартак (Москва)",4,1,"Локомотив (Москва)","1-8 Места",null,3]
[1992,"1992-10-31",7,"ЦСКА (Москва)",0,2,"Локомотив-Эрэтиспорт (Нижний Новгород)","1-8 Места",null,-2]
[1992,"1992-10-31",7,"Динамо (Москва)",2,5,"Спартак (Москва)","1-8 Места",null,-3]
[1992,"1992-10-31",7,"Спартак (Владикавказ)",2,0,"Асмарал (Москва)","1-8 Места",null,2]
[1992,"1992-11-01",7,"Локомотив (Москва)",1,0,"Ростсельмаш (Ростов-на-Дону)","1-8 Места",null,1]
[1992,"1992-11-08",8,"Ростсельмаш (Ростов-на-Дону)",0,1,"ЦСКА (Москва)","1-8 Места",null,-1]
[1992,"1992-11-08",8,"Локомотив-Эрэтиспорт (Нижний Новгород)",1,3,"Локомотив (Москва)","1-8 Места",null,-2]
[1992,"1992-11-08",8,"Асмарал (Москва)",1,3,"Динамо (Москва)","1-8 Места",null,-2]
[1992,"1992-11-08",8,"Спартак (Москва)",5,0,"Спартак (Владикавказ)","1-8 Места",null,5]
["2013/2014",null,6,"Томь (Томск)",null,null,"ЦСКА (Москва)",null,null,0]
["2013/2014",null,6,"Рубин (Казань)",null,null,"Крылья Советов (Самара)"]
["2013/2014",null,6,"Локомотив (Москва)",null,null,"Ростов (Ростов-на-Дону)"]
["2013/2014",null,6,"Кубань (Краснодар)",null,null,"Урал (Екатеринбург)"]
["2013/2014",null,6,"Динамо (Москва)",null,null,"Зенит (Санкт-Петербург)"]
["2013/2014",null,6,"Волга (Нижний Новгород)",null,null,"Терек (Грозный)"]
["2013/2014",null,6,"Анжи (Махачкала)",null,null,"ФК Краснодар"]
["2013/2014",null,6,"Амкар (Пермь)",null,null,"Спартак (Москва)"]
["2013/2014",null,7,"ЦСКА (Москва)",null,null,"Амкар (Пермь)"]
["2013/2014",null,7,"ФК Краснодар",null,null,"Волга (Нижний Новгород)"]
["2013/2014",null,7,"Урал (Екатеринбург)",null,null,"Рубин (Казань)"]
["2013/2014",null,7,"Терек (Грозный)",null,null,"Анжи (Махачкала)"]
["2013/2014",null,7,"Спартак (Москва)",null,null,"Томь (Томск)"]
["2013/2014",null,7,"Крылья Советов (Самара)",null,null,"Кубань (Краснодар)"]
["2013/2014",null,7,"Зенит (Санкт-Петербург)",null,null,"Локомотив (Москва)"]
["2013/2014",null,7,"Динамо (Москва)",null,null,"Ростов (Ростов-на-Дону)"]
["2013/2014",null,8,"ЦСКА (Москва)",null,null,"Ростов (Ростов-на-Дону)"]
["2013/2014",null,8,"ФК Краснодар",null,null,"Крылья Советов (Самара)"]
["2013/2014",null,8,"Урал (Екатеринбург)",null,null,"Динамо (Москва)"]
["2013/2014",null,8,"Томь (Томск)",null,null,"Анжи (Махачкала)"]
["2013/2014",null,8,"Локомотив (Москва)",null,null,"Кубань (Краснодар)"]
["2013/2014",null,8,"Зенит (Санкт-Петербург)",null,null,"Терек (Грозный)"]
["2013/2014",null,8,"Волга (Нижний Новгород)",null,null,"Спартак (Москва)"]
["2013/2014",null,8,"Амкар (Пермь)",null,null,"Рубин (Казань)"]
["2013/2014",null,9,"Ростов (Ростов-на-Дону)",null,null,"Зенит (Санкт-Петербург)"]
["2013/2014",null,9,"Терек (Грозный)",null,null,"ФК Краснодар"]
["2013/2014",null,9,"Спартак (Москва)",null,null,"ЦСКА (Москва)"]
["2013/2014",null,9,"Рубин (Казань)",null,null,"Томь (Томск)"]
["2013/2014",null,9,"Кубань (Краснодар)",null,null,"Амкар (Пермь)"]
["2013/2014",null,9,"Крылья Советов (Самара)",null,null,"Урал (Екатеринбург)"]
["2013/2014",null,9,"Динамо (Москва)",null,null,"Локомотив (Москва)"]
["2013/2014",null,9,"Волга (Нижний Новгород)",null,null,"Анжи (Махачкала)"]

{"sheet":"Суммарная (ПЛ)","index":1,"n_rows":12,"n_cols":28,"rows_kept":12,"cut":false,"hidden":false,"merged":[[1,2,1,9],[1,11,1,18],[1,20,1,27]]}
[]
[null,null,"ИТОГО",null,null,null,null,null,null,null,null,"Дома",null,null,null,null,null,null,null,null,"Выезд"]
["№","Команда","И","В","Н","П","М(З)","М(П)","Р","О",null,"И","В","Н","П","М(З)","М(П)","Р","О",null,"И","В","Н","П","М(З)","М(П)","Р","О"]
[1,"Спартак (Москва)",{"$f":"D4+E4+F4","v":26},{"$f":"M4+V4","v":18},{"$f":"N4+W4","v":7},{"$f":"O4+X4","v":1},{"$f":"P4+Y4","v":62},{"$f":"Q4+Z4","v":19},{"$f":"G4-H4","v":43},{"$f":"D4*3+E4","v":61},null,{"$f":"M4+N4+O4","v":13},{"$f":"COUNTIFS('Премьер-Лига'!D:D,B4,'Премьер-Лига'!J:J,\">0\")","v":10},{"$f":"COUNTIFS('Премьер-Лига'!D:D,B4,'Премьер-Лига'!J:J,\"0\")","v":3},{"$f":"COUNTIFS('Премьер-Лига'!D:D,B4,'Премьер-Лига'!J:J,\"<0\")","v":0},{"$f":"SUMIFS('Премьер-Лига'!E:E,'Премьер-Лига'!D:D,B4)","v":35},{"$f":"SUMIFS('Премьер-Лига'!F:F,'Премьер-Лига'!D:D,B4)","v":8},{"$f":"P4-Q4","v":27},{"$f":"M4*3+N4","v":33},null,{"$f":"V4+W4+X4","v":13},{"$f":"COUNTIFS('Премьер-Лига'!G:G,B4,'Премьер-Лига'!J:J,\"<0\")","v":8},{"$f":"COUNTIFS('Премьер-Лига'!G:G,B4,'Премьер-Лига'!J:J,\"0\")","v":4},{"$f":"COUNTIFS('Премьер-Лига'!G:G,B4,'Премьер-Лига'!J:J,\">0\")","v":1},{"$f":"SUMIFS('Премьер-Лига'!F:F,'Премьер-Лига'!G:G,B4)","v":27},{"$f":"SUMIFS('Премьер-Лига'!E:E,'Премьер-Лига'!G:G,B4)","v":11},{"$f":"Y4-Z4","v":16},{"$f":"V4*3+W4","v":28}]
[2,"Динамо (Москва)",26,14,6,6,55,29,26,48,null,13,{"$f":"COUNTIFS('Премьер-Лига'!D:D,B5,'Премьер-Лига'!J:J,\">0\")","v":9},{"$f":"COUNTIFS('Премьер-Лига'!D:D,B5,'Премьер-Лига'!J:J,\"0\")","v":3},{"$f":"COUNTIFS('Премьер-Лига'!D:D,B5,'Премьер-Лига'!J:J,\"<0\")","v":1},{"$f":"SUMIFS('Премьер-Лига'!E:E,'Премьер-Лига'!D:D,B5)","v":37},{"$f":"SUMIFS('Премьер-Лига'!F:F,'Премьер-Лига'!D:D,B5)","v":13},24,30,null,13,{"$f":"COUNTIFS('Премьер-Лига'!G:G,B5,'Премьер-Лига'!J:J,\"<0\")","v":5},{"$f":"COUNTIFS('Премьер-Лига'!G:G,B5,'Премьер-Лига'!J:J,\"0\")","v":3},{"$f":"COUNTIFS('Премьер-Лига'!G:G,B5,'Премьер-Лига'!J:J,\">0\")","v":5},{"$f":"SUMIFS('Премьер-Лига'!F:F,'Премьер-Лига'!G:G,B5)","v":18},{"$f":"SUMIFS('Премьер-Лига'!E:E,'Премьер-Лига'!G:G,B5)","v":16},2,18]
[3,"ЦСКА (Москва)",27,13,8,6,46,29,17,47,null,13,{"$f":"COUNTIFS('Премьер-Лига'!D:D,B6,'Премьер-Лига'!J:J,\">0\")","v":9},{"$f":"COUNTIFS('Премьер-Лига'!D:D,B6,'Премьер-Лига'!J:J,\"0\")","v":1},{"$f":"COUNTIFS('Премьер-Лига'!D:D,B6,'Премьер-Лига'!J:J,\"<0\")","v":3},{"$f":"SUMIFS('Премьер-Лига'!E:E,'Премьер-Лига'!D:D,B6)","v":29},{"$f":"SUMIFS('Премьер-Лига'!F:F,'Премьер-Лига'!D:D,B6)","v":12},17,28,null,14,{"$f":"COUNTIFS('Премьер-Лига'!G:G,B6,'Премьер-Лига'!J:J,\"<0\")","v":4},{"$f":"COUNTIFS('Премьер-Лига'!G:G,B6,'Премьер-Лига'!J:J,\"0\")","v":7},{"$f":"COUNTIFS('Премьер-Лига'!G:G,B6,'Премьер-Лига'!J:J,\">0\")","v":3},{"$f":"SUMIFS('Премьер-Лига'!F:F,'Премьер-Лига'!G:G,B6)","v":17},{"$f":"SUMIFS('Премьер-Лига'!E:E,'Премьер-Лига'!G:G,B6)","v":17},0,19]
[4,"Локомотив (Москва)",26,13,7,6,34,25,9,46,null,13,{"$f":"COUNTIFS('Премьер-Лига'!D:D,B7,'Премьер-Лига'!J:J,\">0\")","v":7},{"$f":"COUNTIFS('Премьер-Лига'!D:D,B7,'Премьер-Лига'!J:J,\"0\")","v":3},{"$f":"COUNTIFS('Премьер-Лига'!D:D,B7,'Премьер-Лига'!J:J,\"<0\")","v":3},{"$f":"SUMIFS('Премьер-Лига'!E:E,'Премьер-Лига'!D:D,B7)","v":15},{"$f":"SUMIFS('Премьер-Лига'!F:F,'Премьер-Лига'!D:D,B7)","v":11},4,24,null,13,{"$f":"COUNTIFS('Премьер-Лига'!G:G,B7,'Премьер-Лига'!J:J,\"<0\")","v":6},{"$f":"COUNTIFS('Премьер-Лига'!G:G,B7,'Премьер-Лига'!J:J,\"0\")","v":4},{"$f":"COUNTIFS('Премьер-Лига'!G:G,B7,'Премьер-Лига'!J:J,\">0\")","v":3},{"$f":"SUMIFS('Премьер-Лига'!F:F,'Премьер-Лига'!G:G,B7)","v":19},{"$f":"SUMIFS('Премьер-Лига'!E:E,'Премьер-Лига'!G:G,B7)","v":14},5,22]
[5,"Океан (Находка)",30,12,6,12,37,43,-6,42,null,15,{"$f":"COUNTIFS('Премьер-Лига'!D:D,B8,'Премьер-Лига'!J:J,\">0\")","v":9},{"$f":"COUNTIFS('Премьер-Лига'!D:D,B8,'Премьер-Лига'!J:J,\"0\")","v":4},{"$f":"COUNTIFS('Премьер-Лига'!D:D,B8,'Премьер-Лига'!J:J,\"<0\")","v":2},{"$f":"SUMIFS('Премьер-Лига'!E:E,'Премьер-Лига'!D:D,B8)","v":24},{"$f":"SUMIFS('Премьер-Лига'!F:F,'Премьер-Лига'!D:D,B8)","v":14},10,31,null,15,{"$f":"COUNTIFS('Премьер-Лига'!G:G,B8,'Премьер-Лига'!J:J,\"<0\")","v":3},{"$f":"COUNTIFS('Премьер-Лига'!G:G,B8,'Премьер-Лига'!J:J,\"0\")","v":2},{"$f":"COUNTIFS('Премьер-Лига'!G:G,B8,'Премьер-Лига'!J:J,\">0\")","v":10},{"$f":"SUMIFS('Премьер-Лига'!F:F,'Премьер-Лига'!G:G,B8)","v":13},{"$f":"SUMIFS('Премьер-Лига'!E:E,'Премьер-Лига'!G:G,B8)","v":29},-16,11]
[6,"Крылья Советов (Самара)",30,10,11,9,28,28,0,41,null,15,{"$f":"COUNTIFS('Премьер-Лига'!D:D,B9,'Премьер-Лига'!J:J,\">0\")","v":9},{"$f":"COUNTIFS('Премьер-Лига'!D:D,B9,'Премьер-Лига'!J:J,\"0\")","v":5},{"$f":"COUNTIFS('Премьер-Лига'!D:D,B9,'Премьер-Лига'!J:J,\"<0\")","v":1},{"$f":"SUMIFS('Премьер-Лига'!E:E,'Премьер-Лига'!D:D,B9)","v":20},{"$f":"SUMIFS('Премьер-Лига'!F:F,'Премьер-Лига'!D:D,B9)","v":7},13,32,null,15,{"$f":"COUNTIFS('Премьер-Лига'!G:G,B9,'Премьер-Лига'!J:J,\"<0\")","v":1},{"$f":"COUNTIFS('Премьер-Лига'!G:G,B9,'Премьер-Лига'!J:J,\"0\")","v":6},{"$f":"COUNTIFS('Премьер-Лига'!G:G,B9,'Премьер-Лига'!J:J,\">0\")","v":8},{"$f":"SUMIFS('Премьер-Лига'!F:F,'Премьер-Лига'!G:G,B9)","v":8},{"$f":"SUMIFS('Премьер-Лига'!E:E,'Премьер-Лига'!G:G,B9)","v":21},-13,9]
[7,"Зенит (Санкт-Петербург)",30,10,8,12,39,45,-6,38,null,15,{"$f":"COUNTIFS('Премьер-Лига'!D:D,B10,'Премьер-Лига'!J:J,\">0\")","v":8},{"$f":"COUNTIFS('Премьер-Лига'!D:D,B10,'Премьер-Лига'!J:J,\"0\")","v":3},{"$f":"COUNTIFS('Премьер-Лига'!D:D,B10,'Премьер-Лига'!J:J,\"<0\")","v":4},{"$f":"SUMIFS('Премьер-Лига'!E:E,'Премьер-Лига'!D:D,B10)","v":24},{"$f":"SUMIFS('Премьер-Лига'!F:F,'Премьер-Лига'!D:D,B10)","v":12},12,27,null,15,{"$f":"COUNTIFS('Премьер-Лига'!G:G,B10,'Премьер-Лига'!J:J,\"<0\")","v":2},{"$f":"COUNTIFS('Премьер-Лига'!G:G,B10,'Премьер-Лига'!J:J,\"0\")","v":5},{"$f":"COUNTIFS('Премьер-Лига'!G:G,B10,'Премьер-Лига'!J:J,\">0\")","v":8},{"$f":"SUMIFS('Премьер-Лига'!F:F,'Премьер-Лига'!G:G,B10)","v":15},{"$f":"SUMIFS('Премьер-Лига'!E:E,'Премьер-Лига'!G:G,B10)","v":33},-18,11]
[8,"Кубань (Краснодар)",30,4,9,17,24,53,-29,21,null,15,{"$f":"COUNTIFS('Премьер-Лига'!D:D,B11,'Премьер-Лига'!J:J,\">0\")","v":2},{"$f":"COUNTIFS('Премьер-Лига'!D:D,B11,'Премьер-Лига'!J:J,\"0\")","v":6},{"$f":"COUNTIFS('Премьер-Лига'!D:D,B11,'Премьер-Лига'!J:J,\"<0\")","v":7},{"$f":"SUMIFS('Премьер-Лига'!E:E,'Премьер-Лига'!D:D,B11)","v":12},{"$f":"SUMIFS('Премьер-Лига'!F:F,'Премьер-Лига'!D:D,B11)","v":24},-12,12,null,15,{"$f":"COUNTIFS('Премьер-Лига'!G:G,B11,'Премьер-Лига'!J:J,\"<0\")","v":2},{"$f":"COUNTIFS('Премьер-Лига'!G:G,B11,'Премьер-Лига'!J:J,\"0\")","v":3},{"$f":"COUNTIFS('Премьер-Лига'!G:G,B11,'Премьер-Лига'!J:J,\">0\")","v":10},{"$f":"SUMIFS('Премьер-Лига'!F:F,'Премьер-Лига'!G:G,B11)","v":12},{"$f":"SUMIFS('Премьер-Лига'!E:E,'Премьер-Лига'!G:G,B11)","v":29},-17,9]
[9,"Шинник (Ярославль)",30,4,6,20,23,48,-25,18,null,15,{"$f":"COUNTIFS('Премьер-Лига'!D:D,B12,'Премьер-Лига'!J:J,\">0\")","v":2},{"$f":"COUNTIFS('Премьер-Лига'!D:D,B12,'Премьер-Лига'!J:J,\"0\")","v":5},{"$f":"COUNTIFS('Премьер-Лига'!D:D,B12,'Премьер-Лига'!J:J,\"<0\")","v":8},{"$f":"SUMIFS('Премьер-Лига'!E:E,'Премьер-Лига'!D:D,B12)","v":15},{"$f":"SUMIFS('Премьер-Лига'!F:F,'Премьер-Лига'!D:D,B12)","v":25},-10,11,null,15,{"$f":"COUNTIFS('Премьер-Лига'!G:G,B12,'Премьер-Лига'!J:J,\"<0\")","v":2},{"$f":"COUNTIFS('Премьер-Лига'!G:G,B12,'Премьер-Лига'!J:J,\"0\")","v":1},{"$f":"COUNTIFS('Премьер-Лига'!G:G,B12,'Премьер-Лига'!J:J,\">0\")","v":12},{"$f":"SUMIFS('Премьер-Лига'!F:F,'Премьер-Лига'!G:G,B12)","v":8},{"$f":"SUMIFS('Премьер-Лига'!E:E,'Премьер-Лига'!G:G,B12)","v":23},-15,7]

{"sheet":"Переименования","index":2,"n_rows":3,"n_cols":5,"rows_kept":3,"cut":false,"hidden":false,"merged":[]}
[]
["№","Сезон","Прежнее название","Новое название","Примечание"]
[1,1993,"Океан (Находка)","ААА (БББ)"]